fUST/lending_fUST_20240905
["ID","MTS","AMOUNT","RATE_DAILY","PERIOD"]
[337219189,1725503439441,-222.7841921,0.0002183,2]
[337219190,1725503439451,-500.0,0.0002183,2]
[337219191,1725503439460,-500.0,0.0002183,2]
[337219192,1725503439470,-500.0,0.0002183,2]
[337219193,1725503439479,-500.0,0.0002183,2]
[337219194,1725503439489,-500.0,0.0002183,2]
[337219195,1725503439499,-256.05455962,0.0002183,2]
[337219196,1725503439509,-500.0,0.0002183,2]
[337219197,1725503439519,-500.0,0.0002183,2]
[337219198,1725503439529,-500.0,0.0002183,2]
[337219199,1725503439540,-500.0,0.0002183,2]
[337219200,1725503439552,-500.0,0.0002183,2]
[337219201,1725503439562,-489.37868848,0.0002183,2]
[337219202,1725503439572,-404871.059506,0.00021831,3]
[337219203,1725503439583,-347483.97682107,0.00021831,2]
[337219206,1725503441162,-56083.79279165,0.00021831,2]
[337219267,1725503458110,1500.0,0.000205,2]
[337219273,1725503795641,500.0,0.00020405,2]
[337219274,1725503816842,500.0,0.00020103,2]
[337219356,1725504632182,-913.1211888,0.000209,2]
[337219427,1725504638160,-2131.4947297,0.000209,2]
[337219429,1725504638171,-133.72588101,0.00021172,2]
[337219431,1725504638183,-742.91735625,0.00021172,2]
[337219433,1725504638193,-300.0,0.00021391,2]
[337219435,1725504638204,-2608.62169158,0.00021392,2]
[337219437,1725504638214,-63.51514556,0.00021393,2]
[337219440,1725504638227,-1873.13654197,0.00021393,2]
[337219455,1725504638366,-3793.23332472,0.00021393,2]
[337219457,1725504638377,-1000.0,0.00021393,2]
[337219459,1725504638387,-3044.6159185,0.000214,2]
[337219461,1725504638396,-1822.54729446,0.00021456,2]
[337219463,1725504638406,-158.66492945,0.00021473,2]
[337219465,1725504638416,-500.0,0.00021473,2]
[337219467,1725504638426,-500.0,0.00021473,2]
[337219469,1725504638436,-234.39,0.00021473,3]
[337219471,1725504638445,-703.22,0.00021473,3]
[337219473,1725504638455,-500.0,0.00021479,2]
[337219475,1725504638465,-451.40879852,0.00021482,2]
[337219477,1725504638475,-222.7841921,0.00021482,2]
[337219479,1725504638485,-500.0,0.00021482,2]
[337219481,1725504638495,-380.30369931,0.00021482,2]
[337219483,1725504638507,-500.0,0.00021482,2]
[337219485,1725504638517,-500.0,0.00021482,2]
[337219487,1725504638527,-500.0,0.00021482,2]
[337219490,1725504638538,-256.05455962,0.00021482,2]
[337219492,1725504638547,-500.0,0.00021482,2]
[337219494,1725504638556,-500.0,0.00021482,2]
[337219496,1725504638565,-500.0,0.00021482,2]
[337219498,1725504638574,-500.0,0.00021482,2]
[337219500,1725504638584,-500.0,0.00021482,2]
[337219501,1725504638593,-500.0,0.00021482,2]
[337219503,1725504638603,-489.37868848,0.00021482,2]
[337219505,1725504638613,-937.57,0.00021483,3]
[337219507,1725504638623,-468.79,0.00021483,3]
[337219509,1725504638632,-498807.585149,0.00021483,2]
[337219511,1725504638642,-2608.62169155,0.00021498,2]
[337219514,1725504638652,-208.0725932,0.000215,2]
[337219516,1725504638662,-153.0,0.000215,2]
[337219518,1725504638672,-211.0242567,0.000215,2]
[337219520,1725504638681,-154.6974039,0.000215,2]
[337219521,1725504638690,-208.0725932,0.000215,2]
[337219523,1725504638700,-108928.26315719,0.00021503,2]
[337219525,1725504638709,-500.0,0.00021573,2]
[337219527,1725504638719,-55555.0,0.0002159,3]
[337219529,1725504638729,-150.112233,0.000216,4]
[337219531,1725504638738,-150.112233,0.000216,4]
[337219532,1725504638748,-150.112233,0.000216,4]
[337219534,1725504638760,-150.112233,0.000216,4]
[337219536,1725504638769,-2608.62169155,0.00021605,2]
[337219538,1725504638780,-500.0,0.00021673,2]
[337219540,1725504638790,-529.12818456,0.00021673,2]
[337219542,1725504638800,-151.0,0.0002168,2]
[337219545,1725504638814,-1640.011291,0.0002168,2]
[337219547,1725504638824,-1640.011291,0.0002168,2]
[337219549,1725504638834,-151.0,0.0002168,2]
[337219551,1725504638844,-178.076766,0.0002168,2]
[337219553,1725504638855,-168.624792,0.0002168,2]
[337219555,1725504638865,-154.504122,0.0002168,2]
[337219557,1725504638875,-168.624792,0.0002168,2]
[337219559,1725504638884,-151.0,0.0002168,2]
[337219561,1725504638894,-168.706413,0.0002168,2]
[337219563,1725504638904,-154.309259,0.0002168,2]
[337219565,1725504638913,-240.503977,0.0002168,2]
[337219567,1725504638923,-1286.14968,0.0002168,2]
[337219570,1725504638934,-1286.14968,0.0002168,2]
[337219572,1725504638944,-151.0,0.0002168,2]
[337219574,1725504638954,-151.0,0.0002168,2]
[337219576,1725504638965,-151.0,0.0002168,2]
[337219578,1725504638976,-858.78130156,0.00021699,2]
[337219580,1725504638987,-208.1061349,0.000217,2]
[337219582,1725504638998,-208.1061349,0.000217,2]
[337219585,1725504639011,-208.1061349,0.000217,2]
[337219587,1725504639023,-208.1061349,0.000217,2]
[337219589,1725504639034,-153.0,0.000217,2]
[337219591,1725504639045,-153.0,0.000217,2]
[337219593,1725504639057,-153.0,0.000217,2]
[337219596,1725504639067,-153.0,0.000217,2]
[337219598,1725504639078,-153.0,0.000217,2]
[337219600,1725504639092,-150.112233,0.000217,5]
[337219602,1725504639102,-150.112233,0.000217,5]
[337219604,1725504639113,-150.112233,0.000217,5]
[337219606,1725504639123,-151.0,0.000217,2]
[337219609,1725504639134,-1640.011291,0.000217,2]
[337219611,1725504639147,-1640.011291,0.000217,2]
[337219613,1725504639159,-151.0,0.000217,2]
[337219615,1725504639170,-168.624792,0.000217,2]
[337219617,1725504639181,-168.624792,0.000217,2]
[337219620,1725504639191,-151.0,0.000217,2]
[337219622,1725504639202,-1286.14968,0.000217,2]
[337219624,1725504639213,-1286.14968,0.000217,2]
[337219626,1725504639223,-151.0,0.000217,2]
[337219628,1725504639234,-254.006526,0.000217,2]
[337219630,1725504639244,-151.0,0.000217,2]
[337219632,1725504639257,-41254.29801621,0.000217,2]
[337219634,1725504639267,-80000.0,0.000217,2]
[337219637,1725504639278,-2608.62169155,0.00021711,2]
[337219639,1725504639289,-151.00000071,0.0002181,2]
[337219641,1725504639299,-3000.0,0.00021817,2]
[337219643,1725504639310,-9084.1764903,0.00021817,2]
[337219645,1725504639321,-151.0,0.00021817,2]
[337219647,1725504639332,-157.332198,0.00021817,2]
[337219650,1725504639343,-2608.62169155,0.00021817,2]
[337219652,1725504639354,-30043.71278307,0.00021838,2]
[337219654,1725504639365,-160.0,0.0002187,3]
[337219656,1725504639376,-810.51,0.000219,2]
[337219659,1725504639387,-150.112233,0.000219,4]
[337219661,1725504639398,-150.112233,0.000219,4]
[337219663,1725504639410,-150.112233,0.000219,5]
[337219666,1725504639425,-150.112233,0.000219,5]
[337219668,1725504639436,-150.112233,0.000219,5]
[337219670,1725504639448,-150.112233,0.000219,5]
[337219672,1725504639459,-150.112233,0.000219,5]
[337219675,1725504639471,-150.112233,0.000219,4]
[337219677,1725504639482,-150.112233,0.000219,5]
[337219679,1725504639494,-150.112233,0.000219,5]
[337219681,1725504639506,-150.112233,0.000219,4]
[337219683,1725504639517,-150.112233,0.000219,4]
[337219686,1725504639528,-150.112233,0.000219,3]
[337219688,1725504639540,-150.112233,0.000219,4]
[337219690,1725504639551,-150.112233,0.000219,2]
[337219692,1725504639563,-150.112233,0.000219,3]
[337219695,1725504639575,-150.112233,0.000219,5]
[337219697,1725504639586,-238.471071,0.000219,4]
[337219699,1725504639597,-151.0,0.00021907,2]
[337219701,1725504639611,-1640.011291,0.00021907,2]
[337219704,1725504639623,-1640.011291,0.00021907,2]
[337219706,1725504639634,-151.0,0.00021907,2]
[337219708,1725504639646,-168.624792,0.00021907,2]
[337219710,1725504639658,-168.624792,0.00021907,2]
[337219713,1725504639671,-151.0,0.00021907,2]
[337219715,1725504639685,-1286.14968,0.00021907,2]
[337219717,1725504639697,-1286.14968,0.00021907,2]
[337219719,1725504639709,-152.193958,0.00021907,2]
[337219722,1725504639721,-151.0,0.00021907,2]
[337219724,1725504639733,-500.0,0.00021917,2]
[337219726,1725504639746,-500.0,0.00021917,2]
[337219728,1725504639761,-500.0,0.00021917,2]
[337219730,1725504639773,-500.0,0.00021917,2]
[337219733,1725504639785,-500.0,0.00021917,2]
[337219735,1725504639797,-542.65978556,0.00021917,2]
[337219737,1725504639810,-500.0,0.00021917,2]
[337219740,1725504639821,-169.35113573,0.00021917,2]
[337219742,1725504639834,-500.0,0.00021917,2]
[337219744,1725504639846,-544.16987828,0.00021917,2]
[337219746,1725504639857,-520.05557028,0.00021917,2]
[337219748,1725504639869,-500.0,0.00021917,2]
[337219751,1725504639880,-500.0,0.00021917,2]
[337219753,1725504639891,-500.0,0.00021917,2]
[337219755,1725504639902,-500.0,0.00021917,2]
[337219757,1725504639914,-517.95388317,0.00021917,2]
[337219759,1725504639925,-153.90333052,0.00021917,2]
[337219761,1725504639935,-500.0,0.00021917,2]
[337219763,1725504639946,-500.0,0.00021917,2]
[337219764,1725504639959,-500.0,0.00021917,2]
[337219765,1725504639970,-500.0,0.00021917,2]
[337219766,1725504639981,-500.0,0.00021917,2]
[337219767,1725504639991,-500.0,0.00021917,2]
[337219768,1725504640006,-502.84067212,0.00021917,2]
[337219769,1725504640017,-500.0,0.00021917,2]
[337219770,1725504640028,-500.0,0.00021917,2]
[337219771,1725504640039,-390.64520648,0.00021917,2]
[337219772,1725504640050,-500.0,0.00021917,2]
[337219773,1725504640061,-505.32833802,0.00021917,2]
[337219774,1725504640072,-500.0,0.00021917,2]
[337219775,1725504640084,-500.0,0.00021917,2]
[337219776,1725504640096,-503.51487136,0.00021917,2]
[337219777,1725504640117,-500.0,0.00021917,2]
[337219779,1725504640131,-500.0,0.00021917,2]
[337219781,1725504640145,-500.0,0.00021917,2]
[337219784,1725504640160,-500.0,0.00021917,2]
[337219786,1725504640172,-500.0,0.00021917,2]
[337219788,1725504640185,-537.59015667,0.00021917,2]
[337219791,1725504640198,-500.0,0.00021917,2]
[337219793,1725504640213,-500.0,0.00021917,2]
[337219795,1725504640226,-500.0,0.00021917,2]
[337219798,1725504640240,-500.0,0.00021917,2]
[337219801,1725504640257,-500.0,0.00021917,2]
[337219803,1725504640269,-500.0,0.00021917,2]
[337219805,1725504640280,-500.0,0.00021917,2]
[337219807,1725504640292,-193.28702352,0.00021917,2]
[337219809,1725504640304,-500.0,0.00021917,2]
[337219812,1725504640316,-500.0,0.00021917,2]
[337219814,1725504640329,-500.0,0.00021917,2]
[337219816,1725504640342,-500.0,0.00021917,2]
[337219819,1725504640354,-608.5059728,0.00021917,2]
[337219821,1725504640366,-500.0,0.00021917,2]
[337219824,1725504640379,-500.0,0.00021917,2]
[337219826,1725504640392,-500.0,0.00021917,2]
[337219829,1725504640411,-500.0,0.00021917,2]
[337219832,1725504640425,-500.0,0.00021917,2]
[337219834,1725504640440,-503.5722042,0.00021917,2]
[337219837,1725504640455,-500.0,0.00021917,2]
[337219840,1725504640473,-500.0,0.00021917,2]
[337219842,1725504640485,-500.0,0.00021917,2]
[337219844,1725504640495,-500.0,0.00021917,2]
[337219846,1725504640511,-500.0,0.00021917,2]
[337219849,1725504640525,-500.0,0.00021917,2]
[337219851,1725504640538,-500.0,0.00021917,2]
[337219853,1725504640552,-448.68214997,0.00021917,2]
[337219856,1725504640566,-502.77176535,0.00021917,2]
[337219858,1725504640580,-1443.59,0.00021917,2]
[337219861,1725504640594,-500.0,0.00021917,2]
[337219863,1725504640609,-500.0,0.00021917,2]
[337219866,1725504640624,-231.67858329,0.00021917,2]
[337219868,1725504640638,-504.89156472,0.00021917,2]
[337219871,1725504640652,-500.0,0.00021917,2]
[337219873,1725504640664,-500.0,0.00021917,2]
[337219875,1725504640677,-500.0,0.00021917,2]
[337219878,1725504640691,-500.0,0.00021917,2]
[337219880,1725504640705,-500.0,0.00021917,2]
[337219882,1725504640720,-500.0,0.00021917,2]
[337219885,1725504640734,-504.43819092,0.00021917,2]
[337219887,1725504640749,-500.0,0.00021917,2]
[337219890,1725504640764,-507.57548077,0.00021917,2]
[337219892,1725504640776,-336.70395859,0.00021917,2]
[337219894,1725504640788,-514.92175418,0.00021917,2]
[337219897,1725504640800,-500.0,0.00021917,2]
[337219899,1725504640813,-500.0,0.00021917,2]
[337219901,1725504640825,-500.0,0.00021917,2]
[337219903,1725504640838,-509.58897232,0.00021917,2]
[337219905,1725504640853,-500.0,0.00021917,2]
[337219908,1725504640865,-960.45,0.00021917,2]
[337219910,1725504640877,-500.0,0.00021917,2]
[337219912,1725504640889,-404.15239185,0.00021917,2]
[337220502,1725504730222,700.02,0.000205,2]
[337220505,1725504947399,182032.0,0.00025,60]
[337220506,1725505071761,1525.92,0.00025,60]
[337220511,1725505574898,500.0,0.000205,2]
[337220541,1725505832201,-300.0,0.00021368,2]
[337220543,1725505832212,-299.40462813,0.00021369,2]
[337220546,1725505832225,-559.65537187,0.00021369,2]
[337220548,1725505832235,-859.06,0.00021369,2]
[337220550,1725505832246,-859.06,0.00021369,2]
[337220552,1725505832256,-859.06,0.00021369,2]
[337220554,1725505832267,-308.66462813,0.00021369,2]
[337220556,1725505832280,-524.5443939,0.00021369,2]
[337220745,1725505838742,-592.70838371,0.00021269,3]
[337220747,1725505838752,-25.85097797,0.00021369,2]
[337220748,1725505838762,-859.06,0.00021369,2]
[337220749,1725505838772,-859.06,0.00021369,2]
[337220751,1725505838782,-859.06,0.00021369,2]
[337220752,1725505838792,-859.06,0.00021369,2]
[337220753,1725505838801,-859.06,0.00021369,2]
[337220754,1725505838822,-859.06,0.00021369,2]
[337220755,1725505838832,-859.06,0.00021369,2]
[337220756,1725505838842,-859.06,0.00021369,2]
[337220757,1725505838853,-859.06,0.00021369,2]
[337220758,1725505838863,-859.06,0.00021369,2]
[337220759,1725505838874,-859.06,0.00021369,2]
[337220760,1725505838884,-859.06,0.00021369,2]
[337220761,1725505838895,-859.06,0.00021369,2]
[337220762,1725505838906,-859.06,0.00021369,2]
[337220763,1725505838918,-859.06,0.00021369,2]
[337220764,1725505838928,-859.06,0.00021369,2]
[337220765,1725505838938,-859.06,0.00021369,2]
[337220766,1725505838949,-859.06,0.00021369,2]
[337220767,1725505838961,-859.19768662,0.00021369,2]
[337220768,1725505838971,-1640.29256496,0.00021707,2]
[337220769,1725505838981,-1043.44867662,0.00021777,2]
[337220770,1725505838992,-1000.0,0.00021777,2]
[337220771,1725505839002,-1043.44867662,0.00021787,2]
[337220772,1725505839012,-55555.0,0.00021797,3]
[337220773,1725505839023,-1043.44867662,0.00021797,2]
[337220774,1725505839033,-501.34,0.00021797,3]
[337220775,1725505839043,-250.67,0.00021797,3]
[337220776,1725505839052,-752.01,0.00021797,3]
[337220777,1725505839062,-315.98615896,0.00021806,2]
[337220778,1725505839072,-484.86377686,0.00021806,2]
[337220779,1725505839082,-155.94893447,0.00021806,2]
[337220780,1725505839091,-500.0,0.00021806,2]
[337220781,1725505839101,-500.0,0.00021806,2]
[337220782,1725505839111,-500.0,0.00021806,2]
[337220783,1725505839120,-329.23819173,0.00021806,2]
[337220784,1725505839130,-500.0,0.00021806,2]
[337220785,1725505839139,-500.0,0.00021806,2]
[337220786,1725505839149,-500.0,0.00021806,2]
[337220787,1725505839159,-500.0,0.00021806,2]
[337220788,1725505839168,-19017.40950671,0.00021807,3]
[337220850,1725505961475,250.0,0.00020397,2]
[337220851,1725505996536,-3087.0731026,0.00020673,2]
[337220852,1725505996564,-2758.7165777,0.00020765,2]
[337220853,1725505996589,-1295.3160728,0.00020781,2]
[337220854,1725505996616,-1317.1770774,0.00020823,2]
[337220855,1725506007857,-300.0,0.00021687,2]
[337220856,1725506007884,-2459.99633806,0.00021688,2]
[337220857,1725506007909,-1000.0,0.00021707,2]
[337220858,1725506007934,-55555.0,0.00021707,3]
[337220859,1725506007960,-417.37947068,0.00021707,2]
[337220860,1725506007983,-267.62419126,0.00021707,2]
[337220863,1725506026563,564.870507,0.00027,120]
[337220864,1725506035666,500.0,0.00021,7]
[337220865,1725506036372,500.0,0.00021,7]
[337220866,1725506036451,500.0,0.00021,7]
[337220867,1725506037126,500.0,0.00021,7]
[337220868,1725506037523,500.0,0.00021,7]
[337220869,1725506037887,500.0,0.00021,7]
[337220870,1725506038661,587.48,0.00021,7]
[337220871,1725506038891,500.0,0.00021,7]
[337220872,1725506039666,500.0,0.00021,7]
[337220873,1725506040466,500.0,0.00021,7]
[337220874,1725506041424,500.0,0.00021,7]
[337220875,1725506042467,500.0,0.00021,7]
[337220876,1725506043225,500.0,0.00021,7]
[337220877,1725506043994,500.0,0.00021,7]
[337220878,1725506044756,500.0,0.00021,7]
[337220879,1725506045532,410.87,0.00021,7]
[337220880,1725506081684,458.0,0.00027,120]
[337220882,1725506104085,500.0,0.00021,7]
[337220883,1725506140661,810.4954374,0.00020774,2]
[337220884,1725506152461,-4980.19636182,0.00021697,2]
[337220885,1725506152490,-1640.29256496,0.00021697,2]
[337220886,1725506152519,-1000.0,0.00021707,2]
[337220887,1725506152547,-417.37947064,0.0002173,2]
[337220888,1725506152574,-417.37947064,0.00021752,2]
[337220889,1725506152599,-417.37947064,0.00021775,2]
[337220890,1725506152624,-546.91,0.00021787,3]
[337220891,1725506152744,-273.46,0.00021787,3]
[337220892,1725506152771,-300.0,0.00021795,2]
[337220893,1725506152796,-616.21258952,0.00021796,2]
[337220894,1725506152819,-315.98615896,0.00021796,2]
[337220895,1725506152844,-155.94893447,0.00021796,2]
[337220896,1725506152869,-500.0,0.00021796,2]
[337220897,1725506152893,-500.0,0.00021796,2]
[337220898,1725506152919,-500.0,0.00021796,2]
[337220899,1725506152944,-580.46673421,0.00021796,2]
[337220900,1725506152969,-500.0,0.00021796,2]
[337220901,1725506152995,-500.0,0.00021796,2]
[337220902,1725506153021,-500.0,0.00021796,2]
[337220903,1725506153046,-248.77145752,0.00021796,2]
[337220904,1725506153072,-10089.61678662,0.00021797,3]
[337220906,1725506314618,5388.0,0.0002051,2]
[337220909,1725506414036,2044.5247715,0.00020355,2]
[337220910,1725506783185,24900.0,0.00020302,2]
[337220915,1725506895503,1528.2124344,0.00020225,2]
[337220916,1725506918230,26847.58577015,0.00025,60]
[337220937,1725507032456,-159.706161,0.00020583,2]
[337220938,1725507032467,-159.706161,0.00020655,2]
[337220939,1725507032477,-159.706161,0.00020726,2]
[337220940,1725507032488,-159.706161,0.00020798,2]
[337220941,1725507032498,-159.706161,0.00020869,2]
[337220942,1725507032510,-159.706161,0.00020941,2]
[337220943,1725507032522,-386.26550982,0.00020986,2]
[337220944,1725507032539,-155.02946718,0.00020986,2]
[337220945,1725507032550,-159.706161,0.00021012,2]
[337220946,1725507032560,-159.706161,0.00021084,2]
[337220947,1725507032571,-486.2609041,0.00021118,2]
[337220948,1725507032581,-159.706161,0.00021155,2]
[337220949,1725507032591,-159.706161,0.00021227,2]
[337220950,1725507032601,-153.0,0.00021252,2]
[337220951,1725507032612,-159.706161,0.00021298,2]
[337220952,1725507032623,-178.2307453,0.00021352,2]
[337220953,1725507032633,-153.0,0.00021352,2]
[337220954,1725507032643,-153.0,0.00021352,2]
[337220955,1725507032655,-300.0,0.00021368,2]
[337220956,1725507032665,-148.90705734,0.00021369,2]
[337220957,1725507032677,-532.26294266,0.00021369,2]
[337220958,1725507032688,-681.17,0.00021369,2]
[337220959,1725507032701,-681.17,0.00021369,2]
[337220960,1725507032715,-681.17,0.00021369,2]
[337220961,1725507032725,-681.17,0.00021369,2]
[337220962,1725507032736,-681.17,0.00021369,2]
[337220963,1725507032747,-681.17,0.00021369,2]
[337220964,1725507032758,-681.17,0.00021369,2]
[337220965,1725507032768,-681.17,0.00021369,2]
[337220966,1725507032779,-681.17,0.00021369,2]
[337220967,1725507032790,-681.17,0.00021369,2]
[337220968,1725507032804,-681.17,0.00021369,2]
[337220969,1725507032814,-263.88674084,0.00021369,2]
[337220970,1725507032828,-417.28325916,0.00021369,2]
[337220971,1725507032839,-153.46674084,0.00021369,2]
[337221057,1725507038695,-527.70325916,0.00021369,2]
[337221059,1725507038706,-681.17,0.00021369,2]
[337221061,1725507038716,-681.17,0.00021369,2]
[337221064,1725507038727,-681.17,0.00021369,2]
[337221067,1725507038737,-681.17,0.00021369,2]
[337221070,1725507038749,-681.17,0.00021369,2]
[337221073,1725507038760,-681.17,0.00021369,2]
[337221076,1725507038771,-681.17,0.00021369,2]
[337221079,1725507038781,-681.17,0.00021369,2]
[337221082,1725507038791,-681.17,0.00021369,2]
[337221085,1725507038807,-681.21866459,0.00021369,2]
[337221087,1725507038817,-159.706161,0.0002137,2]
[337221089,1725507038827,-159.706161,0.00021441,2]
[337221091,1725507038838,-159.706161,0.00021513,2]
[337221093,1725507038849,-159.706161,0.00021584,2]
[337221095,1725507038860,-4357.67181661,0.000216,2]
[337221097,1725507038870,-53964.80600154,0.000216,2]
[337221100,1725507038884,-67289.49201467,0.000216,2]
[337221102,1725507038895,-159.706161,0.00021656,2]
[337221104,1725507038906,-1476.2633085,0.00021667,2]
[337221106,1725507038916,-1000.0,0.00021687,2]
[337221108,1725507038926,-55555.0,0.00021687,3]
[337221110,1725507038936,-709.5451001,0.000217,2]
[337221112,1725507038949,-709.5451001,0.00021729,2]
[337221114,1725507038966,-525.78,0.00021756,3]
[337221117,1725507038976,-709.5451001,0.00021759,2]
[337221119,1725507038987,-500.0,0.00021765,2]
[337221121,1725507038996,-431.34881266,0.00021765,2]
[337221123,1725507039008,-221.19031127,0.00021765,2]
[337221125,1725507039019,-500.0,0.00021765,2]
[337221127,1725507039029,-500.0,0.00021765,2]
[337221129,1725507039039,-500.0,0.00021765,2]
[337221132,1725507039050,-180.46673421,0.00021765,2]
[337221134,1725507039060,-500.0,0.00021765,2]
[337221136,1725507039071,-102872.7697939,0.00021766,3]
[337221138,1725507039084,-113713.68382524,0.00021766,3]
[337221645,1725507111154,301.220067,0.000205,2]
[337221652,1725507917423,174.93175458,0.0002,2]
[337221653,1725507918724,423.839,0.00020481,2]
[337221697,1725508232441,-3087.0731026,0.00020645,2]
[337221699,1725508232454,-514.230228,0.00020986,2]
[337221702,1725508232464,-4034.21848753,0.00021545,2]
[337221704,1725508232474,-300.0,0.00021635,2]
[337221706,1725508232484,-1000.0,0.00021636,2]
[337221708,1725508232494,-709.5451001,0.00021636,2]
[337221709,1725508232504,-1328.63697765,0.00021636,2]
[337221711,1725508232515,-23046.69483429,0.00021645,3]
[337221714,1725508232527,-569.65,0.00021645,3]
[337221965,1725508238837,-3217.60806484,0.00021645,3]
[337221967,1725508238854,-12483.88622445,0.00021645,3]
[337221969,1725508238864,-4469.32226709,0.00021645,2]
[337221971,1725508238873,-858.78130255,0.00021666,2]
[337221973,1725508238884,-709.5451001,0.00021681,2]
[337221975,1725508238895,-153.0,0.000217,2]
[337221977,1725508238906,-153.0,0.000217,2]
[337221978,1725508238917,-238.471073,0.000217,5]
[337221980,1725508238927,-153.0,0.000217,2]
[337221982,1725508238937,-153.0,0.000217,2]
[337221985,1725508238948,-208.1061349,0.000217,2]
[337221986,1725508238958,-153.0,0.000217,2]
[337221988,1725508238968,-208.1061349,0.000217,2]
[337221990,1725508238978,-153.0,0.000217,2]
[337221992,1725508238988,-208.1061349,0.000217,2]
[337221993,1725508238998,-153.0,0.000217,2]
[337221994,1725508239008,-208.1061349,0.000217,2]
[337221995,1725508239018,-481.96,0.00021716,3]
[337221996,1725508239029,-240.98,0.00021716,3]
[337221997,1725508239039,-722.97,0.00021716,3]
[337221998,1725508239049,-500.0,0.00021725,2]
[337221999,1725508239059,-431.34881266,0.00021725,2]
[337222000,1725508239069,-221.19031127,0.00021725,2]
[337222001,1725508239079,-500.0,0.00021725,2]
[337222002,1725508239088,-500.0,0.00021725,2]
[337222003,1725508239101,-180.46673421,0.00021725,2]
[337222004,1725508239110,-500.0,0.00021725,2]
[337222005,1725508239120,-500.0,0.00021725,2]
[337222006,1725508239130,-335.8461366,0.00021725,2]
[337222007,1725508239140,-500.0,0.00021725,2]
[337222008,1725508239150,-623.04936956,0.00021725,2]
[337222009,1725508239161,-500.0,0.00021725,2]
[337222010,1725508239171,-228.36813073,0.00021725,2]
[337222011,1725508239180,-262.89,0.00021725,3]
[337222012,1725508239191,-243213.53997942,0.00021726,3]
[337222013,1725508239209,-108860.19095234,0.00021726,3]
[337222014,1725508239325,-1197.31203455,0.00021726,3]
[337222113,1725509423811,1295.3160728,0.0002039,2]
[337222148,1725509432529,-299.50005724,0.00020516,2]
[337222393,1725509438723,-49.78802636,0.00020516,2]
[337222400,1725509439183,-166.568319,0.0002066,2]
[337222401,1725509439203,-488.518716,0.00020986,2]
[337222402,1725509439224,-466.0630452,0.00021065,2]
[337222403,1725509439240,-166.568319,0.00021198,2]
[337222404,1725509439250,-153.0,0.000212,2]
[337222405,1725509439259,-153.0,0.000212,2]
[337222406,1725509439270,-153.0,0.000212,2]
[337222407,1725509439280,-153.0,0.000214,2]
[337222408,1725509439291,-153.0,0.00021425,2]
[337222409,1725509439301,-153.0,0.00021425,2]
[337222410,1725509439311,-153.0,0.00021425,2]
[337222411,1725509439320,-3630.23655217,0.00021496,2]
[337222412,1725509439329,-409.9728619,0.00021558,2]
[337222413,1725509439338,-409.9728619,0.00021558,2]
[337222414,1725509439348,-442.7816812,0.00021562,2]
[337222415,1725509439358,-300.0,0.00021595,2]
[337222416,1725509439367,-55555.0,0.00021596,3]
[337222417,1725509439377,-1000.0,0.00021596,2]
[337222418,1725509439386,-1195.77327984,0.00021596,2]
[337222419,1725509439396,-425.72706006,0.000216,2]
[337222420,1725509439406,-425.72706006,0.00021654,2]
[337222421,1725509439415,-500.0,0.00021673,2]